[Event "Titled Tuesday Blitz August 09 Early 2022"]
[White "Gombocz, Ferenc Jr."]
[Black "Yurovskykh, Oleksandr"]
[WhiteFideId "775029"]
[BlackFideId "14134020"]
[WhiteElo "1913"]
[BlackElo "2292"]
[Result "1/2-1/2"]
[Round "01"]
[TimeControl "180+1"]
[Date "2022.08.09"]
[WhiteClock "0:00:45"]
[BlackClock "0:00:18"]

1. c4 {[%clk 0:03:00]}  c5 {[%clk 0:02:59]} 2. g3 {[%clk 0:03:00]}  Nf6 {[%clk 0:02:58]} 3. Bg2 {[%clk 0:03:01]}  d5 {[%clk 0:02:59]} 4. cxd5 {[%clk 0:03:01]}  Nxd5 {[%clk 0:03:00]} 5. Nf3 {[%clk 0:03:01]}  Nc6 {[%clk 0:03:00]} 6. d4 {[%clk 0:03:01]}  cxd4 {[%clk 0:02:58]} 7. Nxd4 {[%clk 0:03:01]}  Ndb4 {[%clk 0:02:59]} 8. Nxc6 {[%clk 0:03:00]}  Qxd1+ {[%clk 0:02:59]} 9. Kxd1 {[%clk 0:03:00]}  Nxc6 {[%clk 0:03:00]} 10. Bxc6+ {[%clk 0:03:00]}  bxc6 {[%clk 0:03:00]} 11. Nc3 {[%clk 0:03:00]}  g6 {[%clk 0:02:52]} 12. Be3 {[%clk 0:02:51]}  Bg7 {[%clk 0:02:52]} 13. Rc1 {[%clk 0:02:49]}  Be6 {[%clk 0:02:45]} 14. b3 {[%clk 0:02:44]}  O-O-O+ {[%clk 0:02:26]} 15. Ke1 {[%clk 0:02:41]}  Bxc3+ {[%clk 0:01:45]} 16. Rxc3 {[%clk 0:02:39]}  Kb7 {[%clk 0:01:45]} 17. f3 {[%clk 0:02:35]}  Rd5 {[%clk 0:01:30]} 18. Kf2 {[%clk 0:02:32]}  Rc8 {[%clk 0:01:22]} 19. Rhc1 {[%clk 0:02:21]}  Ra5 {[%clk 0:01:21]} 20. a4 {[%clk 0:02:18]}  Rd5 {[%clk 0:01:20]} 21. b4 {[%clk 0:02:06]}  a6 {[%clk 0:01:20]} 22. Rc5 {[%clk 0:01:47]}  Rxc5 {[%clk 0:00:59]} 23. Bxc5 {[%clk 0:01:40]}  Rc7 {[%clk 0:00:58]} 24. a5 {[%clk 0:01:24]}  Rd7 {[%clk 0:00:51]} 25. Ke1 {[%clk 0:01:20]}  Bb3 {[%clk 0:00:41]} 26. Rb1 {[%clk 0:01:16]}  Bc4 {[%clk 0:00:41]} 27. Rc1 {[%clk 0:01:16]}  Bb5 {[%clk 0:00:41]} 28. Rd1 {[%clk 0:01:14]}  Rxd1+ {[%clk 0:00:40]} 29. Kxd1 {[%clk 0:01:14]}  e6 {[%clk 0:00:41]} 30. e3 {[%clk 0:01:11]}  Kc7 {[%clk 0:00:41]} 31. Kd2 {[%clk 0:01:11]}  Kd7 {[%clk 0:00:41]} 32. Kc3 {[%clk 0:01:11]}  e5 {[%clk 0:00:41]} 33. Kd2 {[%clk 0:01:02]}  Ke6 {[%clk 0:00:42]} 34. e4 {[%clk 0:01:03]}  f5 {[%clk 0:00:41]} 35. Ke3 {[%clk 0:01:03]}  Bf1 {[%clk 0:00:40]} 36. Kf2 {[%clk 0:01:00]}  Bd3 {[%clk 0:00:39]} 37. Ke3 {[%clk 0:01:00]}  Bc2 {[%clk 0:00:40]} 38. Ba7 {[%clk 0:00:58]}  h5 {[%clk 0:00:38]} 39. h4 {[%clk 0:00:55]}  Ba4 {[%clk 0:00:24]} 40. Bb8 {[%clk 0:00:52]}  Bb5 {[%clk 0:00:24]} 41. Bc7 {[%clk 0:00:51]}  Bf1 {[%clk 0:00:24]} 42. Bb8 {[%clk 0:00:51]}  Bg2 {[%clk 0:00:24]} 43. Bc7 {[%clk 0:00:49]}  Bh1 {[%clk 0:00:19]} 44. Bb8 {[%clk 0:00:48]}  fxe4 {[%clk 0:00:18]} 45. fxe4 {[%clk 0:00:47]}  Bg2 {[%clk 0:00:18]} 46. Bc7 {[%clk 0:00:45]}  Bh1 {[%clk 0:00:18]} 1/2-1/2


[Site "https://www.chess.com"]

[Event "Titled Tuesday Blitz August 09 Early 2022"]
[White "Hajiyev, Kanan"]
[Black "Pulpan, Jakub"]
[WhiteFideId "13404148"]
[BlackFideId "302759"]
[WhiteElo "2118"]
[BlackElo "2451"]
[Result "0-1"]
[Round "01"]
[TimeControl "180+1"]
[Date "2022.08.09"]
[WhiteClock "0:00:26"]
[BlackClock "0:01:47"]

1. d4 {[%clk 0:02:59]}  g6 {[%clk 0:02:46]} 2. Nf3 {[%clk 0:02:58]}  Bg7 {[%clk 0:02:46]} 3. g3 {[%clk 0:02:59]}  d6 {[%clk 0:02:45]} 4. Bg2 {[%clk 0:02:59]}  Bd7 {[%clk 0:02:46]} 5. O-O {[%clk 0:03:00]}  Qc8 {[%clk 0:02:45]} 6. Re1 {[%clk 0:02:59]}  Bh3 {[%clk 0:02:44]} 7. c4 {[%clk 0:02:59]}  Bxg2 {[%clk 0:02:39]} 8. Kxg2 {[%clk 0:03:00]}  Nc6 {[%clk 0:02:40]} 9. d5 {[%clk 0:02:58]}  Nb8 {[%clk 0:02:33]} 10. e4 {[%clk 0:02:55]}  Nd7 {[%clk 0:02:32]} 11. Nc3 {[%clk 0:02:54]}  Ngf6 {[%clk 0:02:31]} 12. e5 {[%clk 0:02:53]}  dxe5 {[%clk 0:02:32]} 13. Nxe5 {[%clk 0:02:52]}  O-O {[%clk 0:02:33]} 14. Bf4 {[%clk 0:02:48]}  Nh5 {[%clk 0:02:31]} 15. Nd3 {[%clk 0:02:39]}  Nxf4+ {[%clk 0:02:30]} 16. Nxf4 {[%clk 0:02:40]}  Re8 {[%clk 0:02:29]} 17. Qc2 {[%clk 0:02:26]}  c6 {[%clk 0:02:22]} 18. Rad1 {[%clk 0:02:24]}  cxd5 {[%clk 0:02:21]} 19. Ncxd5 {[%clk 0:02:17]}  e6 {[%clk 0:02:20]} 20. Ne3 {[%clk 0:02:09]}  Qc6+ {[%clk 0:02:19]} 21. f3 {[%clk 0:01:58]}  Ne5 {[%clk 0:02:19]} 22. Qe2 {[%clk 0:01:55]}  Bh6 {[%clk 0:02:07]} 23. Nd3 {[%clk 0:01:46]}  Nxc4 {[%clk 0:02:03]} 24. Nxc4 {[%clk 0:01:16]}  Qxc4 {[%clk 0:02:04]} 25. Ne5 {[%clk 0:01:09]}  Qxe2+ {[%clk 0:01:55]} 26. Rxe2 {[%clk 0:01:10]}  Re7 {[%clk 0:01:53]} 27. f4 {[%clk 0:01:07]}  Bg7 {[%clk 0:01:51]} 28. Red2 {[%clk 0:01:06]}  Bxe5 {[%clk 0:01:51]} 29. fxe5 {[%clk 0:01:07]}  Rc8 {[%clk 0:01:51]} 30. Kf3 {[%clk 0:01:03]}  Kg7 {[%clk 0:01:45]} 31. h4 {[%clk 0:01:03]}  Rc5 {[%clk 0:01:44]} 32. Ke4 {[%clk 0:01:01]}  Rec7 {[%clk 0:01:42]} 33. Rd4 {[%clk 0:00:51]}  Rc2 {[%clk 0:01:41]} 34. R1d2 {[%clk 0:00:48]}  b6 {[%clk 0:01:37]} 35. a4 {[%clk 0:00:47]}  Rxd2 {[%clk 0:01:35]} 36. Rxd2 {[%clk 0:00:47]}  Rc4+ {[%clk 0:01:36]} 37. Kf3 {[%clk 0:00:41]}  Rxa4 {[%clk 0:01:36]} 38. g4 {[%clk 0:00:37]}  h5 {[%clk 0:01:35]} 39. gxh5 {[%clk 0:00:31]}  gxh5 {[%clk 0:01:36]} 40. Kg3 {[%clk 0:00:27]}  Rg4+ {[%clk 0:01:36]} 41. Kh3 {[%clk 0:00:27]}  Re4 {[%clk 0:01:36]} 42. Rd7 {[%clk 0:00:27]}  Rxe5 {[%clk 0:01:37]} 43. Rxa7 {[%clk 0:00:27]}  Re3+ {[%clk 0:01:37]} 44. Kg2 {[%clk 0:00:27]}  Re2+ {[%clk 0:01:38]} 45. Kg3 {[%clk 0:00:27]}  Rxb2 {[%clk 0:01:39]} 46. Rb7 {[%clk 0:00:27]}  Rb3+ {[%clk 0:01:39]} 47. Kf4 {[%clk 0:00:27]}  Rb4+ {[%clk 0:01:39]} 48. Kg5 {[%clk 0:00:26]}  Rb5+ {[%clk 0:01:40]} 49. Kf4 {[%clk 0:00:27]}  Kf6 {[%clk 0:01:41]} 50. Rb8 {[%clk 0:00:26]}  Rb4+ {[%clk 0:01:41]} 51. Kg3 {[%clk 0:00:27]}  Kf5 {[%clk 0:01:42]} 52. Rh8 {[%clk 0:00:27]}  Rb3+ {[%clk 0:01:43]} 53. Kf2 {[%clk 0:00:27]}  Kg4 {[%clk 0:01:43]} 54. Rf8 {[%clk 0:00:27]}  f5 {[%clk 0:01:44]} 55. Rf6 {[%clk 0:00:27]}  e5 {[%clk 0:01:44]} 56. Rg6+ {[%clk 0:00:26]}  Kxh4 {[%clk 0:01:45]} 57. Re6 {[%clk 0:00:27]}  e4 {[%clk 0:01:45]} 58. Re5 {[%clk 0:00:27]}  Kg4 {[%clk 0:01:46]} 59. Ke2 {[%clk 0:00:26]}  h4 {[%clk 0:01:46]} 60. Re8 {[%clk 0:00:26]}  h3 {[%clk 0:01:47]} 0-1


[Site "https://www.chess.com"]

[Event "Titled Tuesday Blitz August 09 Early 2022"]
[White "Hambleton, Aman"]
[Black "Niyazgulova, Marina"]
[WhiteFideId "2606577"]
[BlackFideId "24142573"]
[WhiteElo "2538"]
[BlackElo "1986"]
[Result "1-0"]
[Round "01"]
[TimeControl "180+1"]
[Date "2022.08.09"]
[WhiteClock "0:00:04"]
[BlackClock "0:00:25"]

1. d4 {[%clk 0:02:56]}  d5 {[%clk 0:02:59]} 2. Bf4 {[%clk 0:02:56]}  Nf6 {[%clk 0:02:58]} 3. e3 {[%clk 0:02:53]}  c5 {[%clk 0:02:58]} 4. c3 {[%clk 0:02:51]}  Nc6 {[%clk 0:02:57]} 5. Nd2 {[%clk 0:02:51]}  e6 {[%clk 0:02:56]} 6. Ngf3 {[%clk 0:02:46]}  Bd6 {[%clk 0:02:55]} 7. Bg3 {[%clk 0:02:46]}  O-O {[%clk 0:02:52]} 8. Bd3 {[%clk 0:02:45]}  b6 {[%clk 0:02:47]} 9. e4 {[%clk 0:02:45]}  dxe4 {[%clk 0:02:45]} 10. Nxe4 {[%clk 0:02:46]}  Nxe4 {[%clk 0:02:37]} 11. Bxe4 {[%clk 0:02:47]}  Bb7 {[%clk 0:02:37]} 12. dxc5 {[%clk 0:02:46]}  Bxc5 {[%clk 0:02:34]} 13. Qa4 {[%clk 0:02:46]}  Qc8 {[%clk 0:02:31]} 14. Bxh7+ {[%clk 0:02:19]}  Kxh7 {[%clk 0:02:25]} 15. Qh4+ {[%clk 0:02:20]}  Kg8 {[%clk 0:01:58]} 16. Ng5 {[%clk 0:02:20]}  Rd8 {[%clk 0:01:54]} 17. Qh7+ {[%clk 0:02:18]}  Kf8 {[%clk 0:01:54]} 18. Qh8+ {[%clk 0:02:16]}  Ke7 {[%clk 0:01:53]} 19. Qxg7 {[%clk 0:02:17]}  Rf8 {[%clk 0:01:49]} 20. Ne4 {[%clk 0:01:28]}  Nd8 {[%clk 0:01:01]} 21. Bh4+ {[%clk 0:00:58]}  Kd7 {[%clk 0:00:58]} 22. O-O-O+ {[%clk 0:00:57]}  Bd5 {[%clk 0:00:51]} 23. Kb1 {[%clk 0:00:10]}  b5 {[%clk 0:00:31]} 24. b4 {[%clk 0:00:03]}  Be7 {[%clk 0:00:30]} 25. Bxe7 {[%clk 0:00:02]}  Kxe7 {[%clk 0:00:31]} 26. Qf6+ {[%clk 0:00:02]}  Kd7 {[%clk 0:00:31]} 27. Nc5+ {[%clk 0:00:02]}  Kc7 {[%clk 0:00:30]} 28. Qe5+ {[%clk 0:00:02]}  Kb6 {[%clk 0:00:30]} 29. a4 {[%clk 0:00:02]}  bxa4 {[%clk 0:00:29]} 30. Qe3 {[%clk 0:00:03]}  Kc7 {[%clk 0:00:28]} 31. c4 {[%clk 0:00:02]}  Nc6 {[%clk 0:00:25]} 32. cxd5 {[%clk 0:00:02]}  exd5 {[%clk 0:00:26]} 33. Qf4+ {[%clk 0:00:02]}  Kb6 {[%clk 0:00:25]} 34. Nxa4+ {[%clk 0:00:03]}  Ka6 {[%clk 0:00:25]} 35. b5+ {[%clk 0:00:03]}  Kxb5 {[%clk 0:00:25]} 36. Rxd5+ {[%clk 0:00:03]}  Ka6 {[%clk 0:00:25]} 37. Qc4+ {[%clk 0:00:04]}  Kb7 {[%clk 0:00:24]} 38. Rb5+ {[%clk 0:00:04]}  Kc7 {[%clk 0:00:25]} 39. Qf4+ {[%clk 0:00:04]}  Kd7 {[%clk 0:00:25]} 40. Rd1+ {[%clk 0:00:04]}  Ke7 {[%clk 0:00:25]} 41. Re1+ {[%clk 0:00:04]}  Kd7 {[%clk 0:00:25]} 42. Rd5# {[%clk 0:00:04]} 1-0


[Site "https://www.chess.com"]

[Event "Titled Tuesday Blitz August 09 Early 2022"]
[White "Hartikainen, Jarmo"]
[Black "Mortazavi, Ali"]
[WhiteFideId "503134"]
[BlackFideId "401323"]
[WhiteElo "2119"]
[BlackElo "2339"]
[Result "0-1"]
[Round "01"]
[TimeControl "180+1"]
[Date "2022.08.09"]
[WhiteClock "0:00:12"]
[BlackClock "0:00:30"]

1. e4 {[%clk 0:03:00]}  c6 {[%clk 0:02:59]} 2. d4 {[%clk 0:03:00]}  d5 {[%clk 0:02:59]} 3. Nc3 {[%clk 0:03:00]}  dxe4 {[%clk 0:03:00]} 4. Nxe4 {[%clk 0:03:01]}  Nf6 {[%clk 0:03:00]} 5. Nxf6+ {[%clk 0:03:01]}  exf6 {[%clk 0:03:01]} 6. Bf4 {[%clk 0:03:01]}  Qb6 {[%clk 0:02:42]} 7. Qe2+ {[%clk 0:02:45]}  Be6 {[%clk 0:02:42]} 8. O-O-O {[%clk 0:02:44]}  Be7 {[%clk 0:02:26]} 9. c4 {[%clk 0:02:37]}  O-O {[%clk 0:02:09]} 10. g4 {[%clk 0:02:22]}  Na6 {[%clk 0:02:03]} 11. Kb1 {[%clk 0:02:17]}  Rad8 {[%clk 0:01:46]} 12. d5 {[%clk 0:02:15]}  cxd5 {[%clk 0:01:46]} 13. cxd5 {[%clk 0:02:15]}  Rxd5 {[%clk 0:01:41]} 14. Rxd5 {[%clk 0:02:12]}  Bxd5 {[%clk 0:01:41]} 15. Nf3 {[%clk 0:01:53]}  Bc5 {[%clk 0:01:21]} 16. Bg2 {[%clk 0:01:46]}  Bxf2 {[%clk 0:00:54]} 17. h4 {[%clk 0:01:43]}  Nb4 {[%clk 0:00:52]} 18. a3 {[%clk 0:01:25]}  Na2 {[%clk 0:00:52]} 19. Ka1 {[%clk 0:01:05]}  Nb4 {[%clk 0:00:41]} 20. Rf1 {[%clk 0:00:52]}  Bc5 {[%clk 0:00:39]} 21. Ne1 {[%clk 0:00:42]}  Bxg2 {[%clk 0:00:37]} 22. Qxg2 {[%clk 0:00:41]}  Nc6 {[%clk 0:00:37]} 23. Nc2 {[%clk 0:00:31]}  Nd4 {[%clk 0:00:36]} 24. Nxd4 {[%clk 0:00:29]}  Bxd4 {[%clk 0:00:36]} 25. h5 {[%clk 0:00:25]}  Qb3 {[%clk 0:00:35]} 26. Rf3 {[%clk 0:00:17]}  Qd1+ {[%clk 0:00:34]} 27. Ka2 {[%clk 0:00:17]}  h6 {[%clk 0:00:34]} 28. Bd6 {[%clk 0:00:12]}  Re8 {[%clk 0:00:30]} 0-1


[Site "https://www.chess.com"]

[Event "Titled Tuesday Blitz August 09 Early 2022"]
[White "Hoffmann, Asa"]
[Black "Dimitrov, Atanas"]
[WhiteFideId "2001470"]
[BlackFideId "2901315"]
[WhiteElo "2117"]
[BlackElo "2681"]
[Result "1-0"]
[Round "01"]
[TimeControl "180+1"]
[Date "2022.08.09"]
[WhiteClock "0:01:42"]
[BlackClock "0:01:22"]

1. d4 {[%clk 0:02:53]}  Nf6 {[%clk 0:03:00]} 2. Bg5 {[%clk 0:02:52]}  e6 {[%clk 0:02:58]} 3. Nd2 {[%clk 0:02:47]}  d5 {[%clk 0:02:57]} 4. e3 {[%clk 0:02:47]}  Be7 {[%clk 0:02:57]} 5. Bd3 {[%clk 0:02:46]}  b6 {[%clk 0:02:56]} 6. Qe2 {[%clk 0:02:45]}  Bb7 {[%clk 0:02:56]} 7. f4 {[%clk 0:02:45]}  Nbd7 {[%clk 0:02:56]} 8. Ngf3 {[%clk 0:02:45]}  c5 {[%clk 0:02:56]} 9. c3 {[%clk 0:02:45]}  Qc7 {[%clk 0:02:54]} 10. Ne5 {[%clk 0:02:43]}  a6 {[%clk 0:02:49]} 11. O-O {[%clk 0:02:42]}  h6 {[%clk 0:02:48]} 12. Bh4 {[%clk 0:02:41]}  b5 {[%clk 0:02:46]} 13. Rac1 {[%clk 0:02:35]}  Rc8 {[%clk 0:02:41]} 14. Bg3 {[%clk 0:02:33]}  Qb6 {[%clk 0:02:38]} 15. f5 {[%clk 0:02:31]}  Nxe5 {[%clk 0:02:34]} 16. dxe5 {[%clk 0:02:29]}  Ne4 {[%clk 0:02:33]} 17. Bxe4 {[%clk 0:02:29]}  dxe4 {[%clk 0:02:33]} 18. f6 {[%clk 0:02:26]}  gxf6 {[%clk 0:02:32]} 19. exf6 {[%clk 0:02:25]}  Bd6 {[%clk 0:02:27]} 20. Qg4 {[%clk 0:02:21]}  Bxg3 {[%clk 0:02:26]} 21. Qxg3 {[%clk 0:02:11]}  c4 {[%clk 0:02:16]} 22. Rf4 {[%clk 0:02:09]}  Qd6 {[%clk 0:01:52]} 23. Nxe4 {[%clk 0:02:04]}  Bxe4 {[%clk 0:01:43]} 24. Rxe4 {[%clk 0:02:04]}  Qd2 {[%clk 0:01:44]} 25. Rf1 {[%clk 0:01:57]}  Rf8 {[%clk 0:01:31]} 26. Rd4 {[%clk 0:01:48]}  Qe2 {[%clk 0:01:22]} 27. Qd6 {[%clk 0:01:42]}  Qxe3+ {[%clk 0:01:22]} 28. Kh1 {[%clk 0:01:42]} 1-0


[Site "https://www.chess.com"]

[Event "Titled Tuesday Blitz August 09 Early 2022"]
[White "Hosseinzadeh, Nima"]
[Black "Garrido, Denis"]
[WhiteFideId "12505323"]
[BlackFideId "601217"]
[WhiteElo "2045"]
[BlackElo "2325"]
[Result "1-0"]
[Round "01"]
[TimeControl "180+1"]
[Date "2022.08.09"]
[WhiteClock "0:01:40"]
[BlackClock "0:01:36"]

1. e4 {[%clk 0:02:55]}  e5 {[%clk 0:02:59]} 2. f4 {[%clk 0:02:54]}  exf4 {[%clk 0:02:56]} 3. Nf3 {[%clk 0:02:55]}  d5 {[%clk 0:02:56]} 4. exd5 {[%clk 0:02:40]}  Nf6 {[%clk 0:02:55]} 5. Bb5+ {[%clk 0:02:32]}  Nbd7 {[%clk 0:02:31]} 6. Nc3 {[%clk 0:02:27]}  Bd6 {[%clk 0:02:28]} 7. Qe2+ {[%clk 0:02:27]}  Qe7 {[%clk 0:02:27]} 8. Qxe7+ {[%clk 0:02:27]}  Kxe7 {[%clk 0:02:26]} 9. d4 {[%clk 0:02:28]}  Re8 {[%clk 0:02:25]} 10. O-O {[%clk 0:02:28]}  Kf8 {[%clk 0:02:24]} 11. Ne5 {[%clk 0:02:22]}  Bxe5 {[%clk 0:02:15]} 12. dxe5 {[%clk 0:02:23]}  Rxe5 {[%clk 0:02:15]} 13. Bxf4 {[%clk 0:02:24]}  Rxd5 {[%clk 0:01:56]} 14. Nxd5 {[%clk 0:02:14]}  Nxd5 {[%clk 0:01:57]} 15. Bg3 {[%clk 0:01:59]}  c6 {[%clk 0:01:56]} 16. Bc4 {[%clk 0:01:56]}  N7f6 {[%clk 0:01:54]} 17. Rae1 {[%clk 0:01:51]}  Be6 {[%clk 0:01:53]} 18. Bd6+ {[%clk 0:01:49]}  Ke8 {[%clk 0:01:44]} 19. Be5 {[%clk 0:01:45]}  Kd7 {[%clk 0:01:43]} 20. Bxd5 {[%clk 0:01:41]}  Nxd5 {[%clk 0:01:41]} 21. Bxg7 {[%clk 0:01:42]}  Rg8 {[%clk 0:01:41]} 22. Bd4 {[%clk 0:01:41]}  Bh3 {[%clk 0:01:36]} 23. Rxf7+ {[%clk 0:01:40]} 1-0


[Site "https://www.chess.com"]

[Event "Titled Tuesday Blitz August 09 Early 2022"]
[White "Jeet, Jain"]
[Black "Drozdowski, Kacper"]
[WhiteFideId "5073022"]
[BlackFideId "1136720"]
[WhiteElo "2055"]
[BlackElo "2485"]
[Result "0-1"]
[Round "01"]
[TimeControl "180+1"]
[Date "2022.08.09"]
[WhiteClock "0:00:14"]
[BlackClock "0:00:57"]

1. Nf3 {[%clk 0:02:58]}  d5 {[%clk 0:02:59]} 2. g3 {[%clk 0:02:58]}  c6 {[%clk 0:02:59]} 3. Bg2 {[%clk 0:02:58]}  Nf6 {[%clk 0:03:00]} 4. O-O {[%clk 0:02:59]}  Bg4 {[%clk 0:03:00]} 5. d4 {[%clk 0:02:59]}  Nbd7 {[%clk 0:03:00]} 6. Nbd2 {[%clk 0:02:59]}  e6 {[%clk 0:02:59]} 7. b3 {[%clk 0:02:59]}  Bd6 {[%clk 0:02:58]} 8. Bb2 {[%clk 0:02:58]}  O-O {[%clk 0:02:59]} 9. c4 {[%clk 0:02:59]}  Qe7 {[%clk 0:02:59]} 10. Re1 {[%clk 0:02:53]}  e5 {[%clk 0:02:54]} 11. dxe5 {[%clk 0:02:51]}  Nxe5 {[%clk 0:02:54]} 12. Nxe5 {[%clk 0:02:51]}  Bxe5 {[%clk 0:02:55]} 13. Bxe5 {[%clk 0:02:51]}  Qxe5 {[%clk 0:02:56]} 14. Qc2 {[%clk 0:02:46]}  Rad8 {[%clk 0:02:53]} 15. cxd5 {[%clk 0:02:39]}  Nxd5 {[%clk 0:02:53]} 16. Nc4 {[%clk 0:02:35]}  Qh5 {[%clk 0:02:49]} 17. e4 {[%clk 0:02:34]}  Nb4 {[%clk 0:02:45]} 18. Qc3 {[%clk 0:02:31]}  a5 {[%clk 0:02:33]} 19. Ne3 {[%clk 0:02:25]}  Be6 {[%clk 0:02:30]} 20. Bf1 {[%clk 0:01:56]}  f6 {[%clk 0:01:52]} 21. a3 {[%clk 0:01:53]}  Na6 {[%clk 0:01:51]} 22. Rad1 {[%clk 0:01:51]}  Qc5 {[%clk 0:01:49]} 23. Qb2 {[%clk 0:01:41]}  Nc7 {[%clk 0:01:43]} 24. b4 {[%clk 0:01:36]}  axb4 {[%clk 0:01:43]} 25. axb4 {[%clk 0:01:37]}  Qe5 {[%clk 0:01:41]} 26. Qxe5 {[%clk 0:01:31]}  fxe5 {[%clk 0:01:42]} 27. Bc4 {[%clk 0:01:32]}  Kf7 {[%clk 0:01:40]} 28. Kf1 {[%clk 0:01:29]}  Rd4 {[%clk 0:01:38]} 29. Bxe6+ {[%clk 0:01:24]}  Nxe6 {[%clk 0:01:39]} 30. Nc2 {[%clk 0:01:19]}  Rc4 {[%clk 0:01:35]} 31. Rd2 {[%clk 0:01:06]}  Rd8 {[%clk 0:01:33]} 32. Red1 {[%clk 0:00:59]}  Rxd2 {[%clk 0:01:32]} 33. Rxd2 {[%clk 0:01:00]}  Ke7 {[%clk 0:01:31]} 34. Ke2 {[%clk 0:00:56]}  Rxe4+ {[%clk 0:01:27]} 35. Kd3 {[%clk 0:00:52]}  Rg4 {[%clk 0:01:27]} 36. Re2 {[%clk 0:00:52]}  Kd6 {[%clk 0:01:25]} 37. f3 {[%clk 0:00:47]}  Rg5 {[%clk 0:01:24]} 38. Ne3 {[%clk 0:00:46]}  b5 {[%clk 0:01:23]} 39. Nc2 {[%clk 0:00:43]}  Nc7 {[%clk 0:01:21]} 40. Ne3 {[%clk 0:00:28]}  Nd5 {[%clk 0:01:19]} 41. Nxd5 {[%clk 0:00:26]}  cxd5 {[%clk 0:01:20]} 42. Ra2 {[%clk 0:00:26]}  Rf5 {[%clk 0:01:17]} 43. Ra6+ {[%clk 0:00:24]}  Kc7 {[%clk 0:01:16]} 44. Ke3 {[%clk 0:00:24]}  Kb7 {[%clk 0:01:09]} 45. Rd6 {[%clk 0:00:20]}  d4+ {[%clk 0:01:07]} 46. Ke4 {[%clk 0:00:21]}  Rh5 {[%clk 0:01:05]} 47. h4 {[%clk 0:00:20]}  g5 {[%clk 0:01:05]} 48. hxg5 {[%clk 0:00:20]}  Rxg5 {[%clk 0:01:05]} 49. g4 {[%clk 0:00:21]}  h5 {[%clk 0:01:03]} 50. gxh5 {[%clk 0:00:21]}  Rxh5 {[%clk 0:01:04]} 51. Rd7+ {[%clk 0:00:19]}  Kc6 {[%clk 0:01:04]} 52. Re7 {[%clk 0:00:19]}  Kd6 {[%clk 0:01:03]} 53. Rb7 {[%clk 0:00:19]}  Rh4+ {[%clk 0:01:03]} 54. Kd3 {[%clk 0:00:18]}  Rh3 {[%clk 0:01:03]} 55. Ke4 {[%clk 0:00:18]}  Rh4+ {[%clk 0:01:03]} 56. Kd3 {[%clk 0:00:19]}  Rf4 {[%clk 0:01:03]} 57. Ke2 {[%clk 0:00:19]}  d3+ {[%clk 0:01:02]} 58. Kxd3 {[%clk 0:00:19]}  Rxb4 {[%clk 0:01:02]} 59. Rb6+ {[%clk 0:00:19]}  Kc5 {[%clk 0:01:02]} 60. Rb8 {[%clk 0:00:19]}  Rd4+ {[%clk 0:01:00]} 61. Ke3 {[%clk 0:00:18]}  Kc4 {[%clk 0:00:57]} 62. Re8 {[%clk 0:00:18]}  Rd5 {[%clk 0:00:57]} 63. Rc8+ {[%clk 0:00:16]}  Rc5 {[%clk 0:00:57]} 64. Rd8 {[%clk 0:00:17]}  b4 {[%clk 0:00:57]} 65. Kd2 {[%clk 0:00:16]}  Kb3 {[%clk 0:00:56]} 66. Ra8 {[%clk 0:00:12]}  Kb2 {[%clk 0:00:56]} 67. Rb8 {[%clk 0:00:13]}  b3 {[%clk 0:00:56]} 68. Rb4 {[%clk 0:00:13]}  Rd5+ {[%clk 0:00:56]} 69. Ke3 {[%clk 0:00:13]}  Kc3 {[%clk 0:00:56]} 70. Rb6 {[%clk 0:00:12]}  Rc5 {[%clk 0:00:56]} 71. Ke4 {[%clk 0:00:13]}  b2 {[%clk 0:00:56]} 72. Rb7 {[%clk 0:00:11]}  Kc2 {[%clk 0:00:56]} 73. f4 {[%clk 0:00:12]}  exf4 {[%clk 0:00:56]} 74. Kxf4 {[%clk 0:00:13]}  b1=Q {[%clk 0:00:56]} 75. Rxb1 {[%clk 0:00:14]}  Kxb1 {[%clk 0:00:57]} 0-1


[Site "https://www.chess.com"]